Cogmind - Beta 16 @@@ ROGUE MODE // 2025.12.27 @ 18:53:25 Player: Rune Result: Destroyed by D-53 Grenadier with Mini Grenade Launcher Performance ------------- Evolutions (1) 500 Regions Visited (3) 600 Robots Destroyed (14) 70 Value Destroyed (392) 392 Prototype IDs (0) 0 Alien Tech Used (0) 0 Bonus (-38) -38 TOTAL SCORE: 1524 Bonus ------- Friendly Fire -38 Cogmind --------- Core Integrity 0/400 Matter 243/300 Energy 300/300 System Corruption 0% Temperature Cool (0) Movement Core (100) Ox1 Location -9/Mines Parts ------- > --- POWER (2) -------- (None) > --- PROPULSION (2) --- (None) > --- UTILITY (2) ------ Small Storage Unit Compact Battery > --- WEAPON (3) ------- (None) > --- INVENTORY (8) ---- Small Storage Unit Medium Matter Pod (0) Salvage Targeting Computer Shield Generator Peak State ------------ > --- POWER ------------ Light Ion Engine Light Deuterium Engine > --- PROPULSION ------- Aluminum Leg Aluminum Leg > --- UTILITY ---------- Small Storage Unit Compact Battery > --- WEAPON ----------- Medium Laser Heavy Assault Rifle Shotgun > --- INVENTORY -------- Small Storage Unit Salvage Targeting Computer Shield Generator EM Pulse Gun [Rating: 15] Favorites ----------- Power Light Ion Engine Engine Light Ion Engine Propulsion Aluminum Leg Leg Aluminum Leg Utility Small Storage Unit Device Heat Sink Storage Small Storage Unit Weapon Medium Laser Energy Gun Medium Laser Ballistic Gun Heavy Assault Rifle Special Weapon Mining Laser Build | -11 -10 -9 -9 ------- Run | Yrd Mat Mat Min Slots Evolved 2 | . . 2 . Power 1 | . . 1 . Propulsion . | . . . . Utility . | . . . . Weapon 1 | . . 1 . Parts Attached 14 | 7 1 4 2 Power 2 | 1 . 1 . Engine 2 | 1 . 1 . Core . | . . . . Reactor . | . . . . Propulsion 2 | 2 . . . Treads . | . . . . Leg 2 | 2 . . . Wheel . | . . . . Hover . | . . . . Flight . | . . . . Utility 3 | 1 1 1 . Device 1 | . 1 . . Storage 2 | 1 . 1 . Processor . | . . . . Hackware . | . . . . Protection . | . . . . Artifact . | . . . . Weapon 7 | 3 . 2 2 Energy Gun 3 | 2 . . 1 Energy Cannon . | . . . . Ballistic Gun 3 | 1 . 2 . Ballistic Cannon . | . . . . Launcher . | . . . . Special Weapon 1 | . . . 1 Impact Weapon . | . . . . Slashing Weapon . | . . . . Piercing Weapon . | . . . . Special Melee Weapon . | . . . . Unidentified Prototypes . | . . . . Parts Lost 11 | . . 2 9 Power 2 | . . . 2 Propulsion 2 | . . . 2 Utility 1 | . . 1 . Weapon 6 | . . 1 5 Highest Loss Streak 9 | . . 2 9 To Critical Strikes . | . . . . Average Backups 3 | 2 1 4 5 Power . | . . . . Propulsion . | . . . . Utility 2 | . . 3 4 Weapon 1 | 1 1 1 1 Tool/Special . | . . . . Unused Backups 5 | . . 2 3 Power . | . . . . Propulsion . | . . . . Utility 4 | . . 1 3 Weapon 1 | . . 1 . Tool/Special . | . . . . Average Slot Usage (%) 90 | . 89 93 85 Engine 17 | . 14 19 18 Leg 22 | . 28 22 16 Device 4 | . 4 6 . Storage 15 | . 14 14 22 Energy Gun 11 | . 14 11 8 Ballistic Gun 18 | . 14 19 19 Peak Build Rating 15 | 6 7 15 15 Average Rating 10 | 3 6 12 13 On Entrance 7 | . 6 7 15 Avg Prop Armor Cover (%) . | . . . . Naked Turns . | . . . . Heaviest Build 22 | 12 13 22 22 Greatest Support 20 | 20 20 20 20 Greatest Overweight (x) 6 | . . 1 6 Average Overweight (x) . | . . . 1 Largest Inventory Capacity 8 | 8 8 8 8 Average Capacity 7 | 5 8 8 8 Most Carried 7 | 4 3 7 6 Average Carried 3 | 2 1 4 5 Final Capacity 8 | 8 8 8 8 Final Carried 6 | 1 2 6 4 Class Distribution -------------------- 54% | Gunner 45% | Mutant Dominant Class ---------------- Mutant | -10/Materials Gunner | -9/Materials Gunner | -9/Mines Resources | -11 -10 -9 -9 ----------- Run | Yrd Mat Mat Min Matter Collected 445 | 223 111 93 18 Remotely . | . . . . Salvage Created 490 | . 192 291 7 Parts 24 | . 9 15 . Haulers Intercepted . | . . . . Recyclers Shooed . | . . . . Parts Field Recycled . | . . . . Retrieved Matter . | . . . . Parts Self-Destructed . | . . . . Prevented . | . . . . Parts Restored . | . . . . Kills | -11 -10 -9 -9 ------- Run | Yrd Mat Mat Min Combat Hostiles Destroyed 10 | . 4 5 1 Guns 10 | . 4 5 1 Classes Destroyed 6 | . 2 3 1 Worker 2 | . . 2 . Builder 2 | . 2 . . Watcher 1 | . . 1 . Grunt 7 | . 4 3 . Sentry 2 | . . 2 . Assembled 1 | . . . 1 Best Kill Streak 5 | . 5 3 1 Combat Bots Only 4 | . 4 3 1 Max Kills in Single Turn 1 | . 1 1 1 Gunslinging . | . . . . Exploded . | . . . . Melee . | . . . . Uniques/NPCs Destroyed . | . . . . Combat | -11 -10 -9 -9 -------- Run | Yrd Mat Mat Min Hostile Shots Fired 69 | . 24 19 26 Missed 15 | . 6 6 3 Hits 54 | . 18 13 23 Projectile 54 | . 18 13 23 AOE 20 | . . . 20 Critical Strikes 2 | . . 1 1 Damage Taken 1326 | . 239 186 901 Core 437 | . 15 . 422 Absorbed by Shields . | . . . . Core Remaining (%) 97 | 100 94 . . Volleys Fired 46 | . 16 16 14 Largest 3 | . 2 3 3 Hottest 140 | . 70 96 140 Shots Fired 112 | . 32 44 36 Gun 110 | . 32 44 34 Cannon . | . . . . Launcher . | . . . . Special 2 | . . . 2 Kinetic 66 | . 16 28 22 Thermal 44 | . 16 16 12 Explosive . | . . . . Electromagnetic 2 | . . . 2 Robot Hit Streak 10 | . 10 9 4 Robot Miss Streak 6 | . 3 3 6 Penetration Max . | . . . . Secondary Targets . | . . . . Shots Hit Robots 69 | . 22 30 17 Core Hits 32 | . 10 13 9 Critical Kills . | . . . . Critical Parts Destroyed . | . . . . Critical Strikes 2 | . . 2 . Burn 2 | . . 2 . Melee Attacks . | . . . . Impact . | . . . . Slashing . | . . . . Piercing . | . . . . Sneak Attacks . | . . . . Combat Hostiles . | . . . . Follow-up Attacks . | . . . . Damage Inflicted 903 | 4 287 384 228 Guns 898 | . 287 383 228 Cannons . | . . . . Explosions . | . . . . Melee . | . . . . Ramming 5 | 4 . 1 . Kinetic 538 | . 137 259 142 Thermal 336 | . 150 124 62 Explosive . | . . . . Electromagnetic 24 | . . . 24 Impact . | . . . . Slashing . | . . . . Piercing . | . . . . Highest Corruption 4 | . 4 . . Average Corruption 3 | . 3 . . Corruption Purged . | . . . . Corruption Blocked . | . . . . Overload Shots . | . . . . Overflow Damage . | . . . . Projectiles . | . . . . Explosions . | . . . . Melee . | . . . . Knockbacks . | . . . . Impact . | . . . . Kinetic . | . . . . Secondary . | . . . . Self-Inflicted Damage . | . . . . Shots . | . . . . Rammed . | . . . . Targets Rammed 4 | 3 . 1 . Kicked 4 | 3 . 1 . Crushed . | . . . . Highest Temperature 228 | . 210 181 228 Average Temperature 90 | . 98 59 118 Received Heat Transfer 230 | . 135 75 20 Siege Activations . | . . . . Martial Activations . | . . . . Shielding Activations . | . . . . Robots Disrupted . | . . . . Combat Hostiles . | . . . . Robots Corrupted . | . . . . Combat Hostiles . | . . . . Parts Fried . | . . . . Impact Corruptions . | . . . . Robots Melted . | . . . . Combat Hostiles . | . . . . Parts Melted 4 | . 1 3 . Heat Transferred 1147 | . 444 518 185 Parts Sabotaged . | . . . . Parts Stolen . | . . . . Parts Stripped . | . . . . Power Chain Reactions . | . . . . Alert | -11 -10 -9 -9 ------- Run | Yrd Mat Mat Min Maximum Alert Level . | . . . . Low Security (%) 100 | 100 100 100 100 Level 1 . | . . . . Level 2 . | . . . . Level 3 . | . . . . Level 4 . | . . . . Level 5 . | . . . . High Security . | . . . . Max Security . | . . . . Peak Influence 76 | . 76 55 6 Initial 14 | . . 14 6 Average 16 | . 33 17 . Influence Increases 264 | . 101 163 . Destroy 0b10 Robot/C 180 | . 80 100 . Destroy 0b10 Robot/NC 25 | . 10 15 . Destroy Leader 42 | . 10 32 . Successful Hack 1 | . . 1 . Disable Machine 15 | . . 15 . Destroy Structure 1 | . 1 . . Influence Decreases 264 | . 65 183 16 Entered New Map 32 | . . 22 10 Time Decay 212 | . 65 141 6 Lost Part 20 | . . 20 . Squads Dispatched 1 | . . 1 . Investigation . | . . . . Extermination . | . . . . Reinforcement 1 | . . 1 . Assault . | . . . . Garrison . | . . . . Intercept . | . . . . Searches Triggered . | . . . . Construction Impeded . | . . . . Haulers Reinforced . | . . . . Active Scanning Responses . | . . . . Cargo Convoy Interrupts . | . . . . Stealth | -11 -10 -9 -9 --------- Run | Yrd Mat Mat Min Distress Signals . | . . . . Communications Jammed . | . . . . Distress Signals . | . . . . Times Spotted 36 | . 8 6 22 Peak Tracking Total 17 | . 4 3 17 Tactical Retreats 2 | . . . 2 Traps | -11 -10 -9 -9 ------- Run | Yrd Mat Mat Min Traps Triggered 2 | . 2 . . Indirectly . | . . . . Trap Hack Attempts . | . . . . Triggered . | . . . . Disarmed . | . . . . Reprogrammed . | . . . . Reused . | . . . . Traps Extracted . | . . . . Installed . | . . . . Triggered . | . . . . Machines | -11 -10 -9 -9 ---------- Run | Yrd Mat Mat Min Machines Disabled 1 | . . 1 . Max in Single Turn 1 | . . 1 . Machines Repaired . | . . . . Machines Dismantled . | . . . . Machines Sabotaged . | . . . . Overloaded Fab Kills . | . . . . Hacking | -11 -10 -9 -9 --------- Run | Yrd Mat Mat Min Machines Accessed 4 | . 2 2 . Terminals 3 | . 2 1 . Fabricators . | . . . . Repair Stations . | . . . . Recycling Units 1 | . . 1 . Scanalyzers . | . . . . Garrison Access . | . . . . Total Hacks 8 | . 4 4 . Successful 5 | . 2 3 . Failed 3 | . 2 1 . Catastrophic . | . . . . Database Lockouts . | . . . . Manual . | . . . . Terminals 6 | . 4 2 . Fabricators . | . . . . Repair Stations . | . . . . Recycling Units 2 | . . 2 . Scanalyzers . | . . . . Garrison Access . | . . . . Terminal Hacks 3 | . 2 1 . Record 3 | . 2 1 . Fabricator Hacks . | . . . . Repair Station Hacks . | . . . . Recycling Unit Hacks 2 | . . 2 . Recycle Component 1 | . . 1 . Process 1 | . . 1 . Scanalyzer . | . . . . Garrison Access Hacks . | . . . . Unauthorized Hacks . | . . . . Terminals . | . . . . Fabricators . | . . . . Repair Stations . | . . . . Recycling Units . | . . . . Scanalyzers . | . . . . Garrison Access . | . . . . Data Cores Recovered . | . . . . Used . | . . . . Hacking Detections 2 | . . 2 . Full Trace Events . | . . . . Feedback Events . | . . . . Feedback Blocked . | . . . . Robot Schematics Acquired . | . . . . Robots Built . | . . . . Authchips . | . . . . Time . | . . . . Total Robot Build Rating . | . . . . Part Schematics Acquired . | . . . . Parts Built . | . . . . Authchips . | . . . . Time . | . . . . Total Part Build Rating . | . . . . Part Studies Acquired . | . . . . Parts Repaired . | . . . . Time . | . . . . Parts Recycled 1 | . . 1 . Recycled Matter . | . . . . Retrieved Matter . | . . . . Retrieved Components . | . . . . Parts Scanalyzed . | . . . . Part Schematics Acquired . | . . . . Parts Damaged . | . . . . Bothacking | -11 -10 -9 -9 ------------ Run | Yrd Mat Mat Min Used RIF Installer . | . . . . Robots Hacked . | . . . . Non-combat . | . . . . Combat . | . . . . Robot Hacks Applied . | . . . . Relay Couplers Released . | . . . . Fabnet Peak Effective % . | . . . . Robots Rewired . | . . . . Allies Hacked . | . . . . Hacks Repelled . | . . . . Allies | -11 -10 -9 -9 -------- Run | Yrd Mat Mat Min Total Allies . | . . . . Largest Group . | . . . . Highest-Rated Group . | . . . . Highest-Rated Ally . | . . . . Total Orders . | . . . . Ally Attacks . | . . . . Total Damage . | . . . . Kills . | . . . . Allies Corrupted . | . . . . Allies Melted . | . . . . Intel | -11 -10 -9 -9 ------- Run | Yrd Mat Mat Min Active Infowar (turns) . | . . . . Robot Analysis Total . | . . . . Derelict Logs Recovered . | . . . . Drone Launches . | . . . . Drone Recoveries . | . . . . Exploration | -11 -10 -9 -9 ------------- Run | Yrd Mat Mat Min Turns Passed 825 | 77 183 424 141 Spaces Moved 435 | 56 104 221 54 Core 25 | 11 . . 14 Treads . | . . . . Legs 410 | 45 104 221 40 Wheels . | . . . . Hover . | . . . . Flight . | . . . . Fastest Speed 50 | 50 120 120 100 Average Speed 143 | 106 120 157 171 Slowest Speed 350 | 120 120 190 350 Overloaded Moves . | . . . . Propulsion Burnouts . | . . . . Robots Hopped . | . . . . Potential Cave-ins . | . . . . Cave-ins Triggered . | . . . . Exploration Rate (%) 14 | 4 18 18 18 Regions Visited 3 Branch Regions 1 Pre-discovered Areas . | . . . . Known Exits Taken . | . . . . Unknown Exits Taken 3 | 1 1 1 . Scrap Searched . | . . . . Spaces Dug . | . . . . Terrain Destroyed . | . . . . Melee . | . . . . Projectile . | . . . . AOE . | . . . . Terrain Rammed . | . . . . Walls Destroyed . | . . . . Machines Disabled . | . . . . Actions | -11 -10 -9 -9 --------- Run | Yrd Mat Mat Min Total 536 | 73 131 262 70 Wait 11 | . 3 8 . Move 432 | 55 103 220 54 Hop . | . . . . Pick Up 21 | 7 3 11 . Fast Attach . | . . . . Attach 16 | 7 3 4 2 Detach 3 | 1 2 . . Swap . | . . . . Drop 3 | . 1 2 . Fire 46 | . 16 16 14 Melee . | . . . . Ram . | . . . . Kick 4 | 3 . 1 . Crush . | . . . . Escape Stasis . | . . . . Rewire . | . . . . Trap . | . . . . Miscellaneous . | . . . . Route ------- -11/Scrapyard -10/Materials -9/Materials -9/Mines History --------- Turn | Location | Event 8 | -11/Scrapyard | Discovered new exit (range 16) 78 | -11/Scrapyard | Entered Materials 240 | -10/Materials | Discovered new exit (range 15) 261 | -10/Materials | Entered another Materials area 261 | -9/Materials | Evolved 2 slots: Power x1, Weapon x1 627 | -9/Materials | Discovered new exit (range 12) 685 | -9/Materials | Entered Mines 724 | -9/Mines | Assembled infested the area 729 | -9/Mines | Assisted by a Guerilla fighting off Assembled 810 | -9/Mines | Core integrity fell below 50% 816 | -9/Mines | Core integrity fell below 20% 826 | -9/Mines | Destroyed by D-53 Grenadier with Mini Grenade Launcher Last Messages --------------- R-06 Scavenger destroyed. as-73947 destroyed. Med. Laser destroyed. Hvy. Assault Rifle destroyed. Shotgun destroyed. The unstable cave ceiling collapses. U-05 Engineer lays Concrete. EM Pulse Gun destroyed. U-05 Engineer builds a Wall. The unstable cave ceiling collapses. Mining Laser destroyed. The unstable cave ceiling collapses. U-05 Engineer builds a Wall. The unstable cave ceiling collapses. Lgt. Deuterium Engine destroyed. The unstable cave ceiling collapses. U-05 Engineer lays Concrete. The unstable cave ceiling collapses. U-05 Engineer builds a Wall. The unstable cave ceiling collapses. Map ----- +----------------------------------------------------+ | | | | | ???????????????????????????????????????????? | | ???????????????????????????????????????????? | | ???????????????????????????????????????????? | | ???????????????????????????????????????????? | | ???????????????????????????????????????????? | | ???????????????????????????????????????????? | | ???????????????????????????????????????????? | | ???????????????????????????????????????????? | | ???????????????????????????????????????????? | | ?????????????????????? ???????????????????? | | ?????????????????????? ???????????????????? | | ??????????????????????s ???????????????????? | | ??????????????????????# ???????????????????? | | ??????????????????????# ??????????????????? | | ??????????????????????# ??????????????????? | | ??????????????????????# ??????????????????? | | ??????????????????????# ??????????????????? | | ??????????????????????# ??????????????????? | | ??????????????????????# ??????????????????? | | ??????????????????????# ??????????????????? | | ??????????????????????# ##????????????????? | | ??????????????????????# #????????????????? | | ??????????????????????# #######??????????? | | ???????????????????#### @ #??????????? | | ???????????????????# ### #??????????? | | ???????????????????# ! #?????????????? | | ???????????????????# ! #?????????????? | | ???????????????????# !! #?????????????? | | ???????????????????# !! #?????????????? | | ???????????????????# #????????????? | | ???????????????????### ##?#??????????? | | ?????????????????????# # #??????????? | | ?????????????????????## ##?????????? | | ?????????????????????## d # ##????????? | | ?????????????????????# a# # " #???? | | ?????????????????????# # # #?????? | | ?????????????????????# # ##?????? | | ?????????????????????## ##??????? | | ??????????????????????# #???????? | | ??????????????????????##% ##???????? | | ??????????????????????##! ####????????? | | ???????????????????????# #######???????????? | | ???????????????????????# #?????????????????? | | ?????????????????????### #?????????????????? | | ?????????????????????# ##????????????????? | | ????????????########## #????????????????? | | ????????????# #????????????????? | | ????????????# #????????????????? | +----------------------------------------------------+ Best States ------------- Heat Dissipation 38 Energy Generation 19 Energy Capacity 365 Matter Stores 300 Matter Capacity 300 Sight Range 16 Terrain Scan Density 10 Evasion (%) 55 Item Schematics ----------------- None Robot Schematics ------------------ None Fabricated ------------ Nothing Repaired ---------- Nothing Studied --------- None Alien Tech Used ----------------- None Achievements -------------- None Challenges ------------ None Game ------ Seed GodMetamassSlamshotty Manual? 0 Play Time 00:13:01 Cumulative 12.9 hours Start 2025.12.27 @ 18:41:54 End 2025.12.27 @ 18:53:25 Sessions 1 Manual Loads 0 Difficulty Rogue Special Mode None Game No. 43 Rogue 43 Adventurer 0 Explorer 0 Win Type - Total 0 Types 0/0/0/0/0/0/0/0/0/0 Lore% 5 Gallery% 12 Achievement% 9 Wizard Run 0 Options --------- Layout 1 ASCII 0 Keyboard 1 Movement Numpad Keybinds 0 Fullscreen 1 Font 32/SmallcapsGlow Map View 50x35 Zoom Use 0% Tactical HUD 0 Map Filters NONE Filters NONE Steam 1 RUN: ff39f8e9-10f5-4e08-ab56-d79710eeb101